fUST/lending_fUST_20250817
["ID","MTS","AMOUNT","RATE_DAILY","PERIOD"]
[379897290,1755433854203,-480.0,0.00020273,2]
[379897292,1755433854212,-825.07,0.00020273,2]
[379897293,1755433854221,-480.0,0.00020273,2]
[379897295,1755433854230,-480.0,0.00020273,2]
[379897297,1755433854239,-2080.32,0.00020273,2]
[379897299,1755433854249,-480.0,0.00020273,2]
[379897301,1755433854258,-3523.94,0.00020273,2]
[379897303,1755433854267,-480.0,0.00020273,2]
[379897305,1755433854276,-7049.46,0.00020273,2]
[379897307,1755433854286,-1429.6,0.00020273,2]
[379897309,1755433854295,-561.34,0.00020273,2]
[379897311,1755433854304,-898.35,0.00020273,2]
[379897313,1755433854314,-545.78,0.00020273,2]
[379897314,1755433854323,-623.64,0.00020273,2]
[379897316,1755433854332,-473.26741213,0.00020273,2]
[379897318,1755433854341,-761.94,0.00020273,2]
[379897320,1755433854350,-480.0,0.00020273,2]
[379897322,1755433854360,-527.31,0.00020273,2]
[379897324,1755433854369,-480.0,0.00020273,2]
[379897326,1755433854378,-809.74,0.00020273,2]
[379897328,1755433854387,-341.794173,0.00020273,2]
[379897330,1755433854396,-480.0,0.00020273,2]
[379897332,1755433854406,-501.65,0.00020273,2]
[379897334,1755433854415,-440.0,0.00020273,2]
[379897336,1755433854424,-480.0,0.00020273,2]
[379897348,1755433854528,-392.83787932,0.00020273,2]
[379897350,1755433854538,-480.0,0.00020273,2]
[379897352,1755433854548,-161.82867982,0.00020356,2]
[379897354,1755433854556,-161.05094368,0.00020356,2]
[379897355,1755433854565,-345.40585539,0.00020398,2]
[379897357,1755433854574,-480.0,0.00020398,2]
[379897359,1755433854583,-480.0,0.00020398,2]
[379897361,1755433854592,-480.0,0.00020398,2]
[379897363,1755433854601,-480.0,0.00020398,2]
[379897365,1755433854610,-480.0,0.00020398,2]
[379897367,1755433854619,-440.0,0.00020398,2]
[379897369,1755433854628,-480.0,0.00020398,2]
[379897371,1755433854637,-480.0,0.00020398,2]
[379897373,1755433854646,-480.0,0.00020398,2]
[379897375,1755433854655,-480.0,0.00020398,2]
[379897377,1755433854665,-480.0,0.00020398,2]
[379897379,1755433854674,-571.55534114,0.00020398,2]
[379897381,1755433854683,-151.0,0.000204,3]
[379897383,1755433854693,-420.5,0.00020402,2]
[379897385,1755433854703,-4378.96115483,0.00020403,2]
[379897387,1755433854712,-152.195736,0.00020468,2]
[379897389,1755433854722,-151.0,0.00020468,2]
[379897391,1755433854731,-151.0,0.00020468,2]
[379897393,1755433854741,-349.721042,0.00020468,2]
[379897395,1755433854750,-349.721042,0.00020468,2]
[379897397,1755433854759,-823.585671,0.00020468,2]
[379897399,1755433854769,-823.585671,0.00020468,2]
[379897401,1755433854779,-1000.0,0.00020468,2]
[379897403,1755433854788,-1500.0,0.00020468,2]
[379897405,1755433854801,-1500.0,0.00020468,2]
[379897407,1755433854811,-500.0,0.00020473,2]
[379897409,1755433854820,-500.0,0.00020473,2]
[379897411,1755433854830,-500.0,0.00020473,2]
[379897413,1755433854840,-500.0,0.00020473,2]
[379897415,1755433854849,-500.0,0.00020473,2]
[379897417,1755433854859,-584.71166628,0.00020473,2]
[379897419,1755433854868,-500.0,0.00020473,2]
[379897421,1755433854878,-500.0,0.00020473,2]
[379897423,1755433854889,-500.0,0.00020473,2]
[379897424,1755433854899,-500.0,0.00020473,2]
[379897427,1755433854908,-500.0,0.00020473,2]
[379897429,1755433854918,-500.0,0.00020473,2]
[379897430,1755433854928,-452.59136052,0.00020473,2]
[379897432,1755433854937,-258.67006152,0.00020473,2]
[379897434,1755433854946,-158.61449762,0.00020473,2]
[379897436,1755433854955,-500.0,0.00020473,2]
[379897438,1755433854964,-500.0,0.00020473,2]
[379897440,1755433854974,-338.40442225,0.00020473,2]
[379897442,1755433854983,-159.60508025,0.00020473,2]
[379897444,1755433854992,-415.34722731,0.00020473,2]
[379897446,1755433855001,-158.62313276,0.00020473,2]
[379897448,1755433855010,-500.0,0.00020473,2]
[379897450,1755433855020,-158.61775077,0.00020473,2]
[379897452,1755433855029,-248.73521794,0.00020473,2]
[379897454,1755433855038,-158.20000211,0.00020473,2]
[379897456,1755433855047,-158.60123121,0.00020473,2]
[379897458,1755433855056,-500.0,0.00020473,2]
[379897459,1755433855065,-500.0,0.00020473,2]
[379897461,1755433855073,-500.0,0.00020473,2]
[379897463,1755433855082,-160.62292884,0.00020473,2]
[379897465,1755433855090,-258.63436774,0.00020473,2]
[379897467,1755433855099,-340.84167788,0.00020473,2]
[379897469,1755433855108,-340.42651408,0.00020473,2]
[379897471,1755433855117,-500.0,0.00020473,2]
[379897473,1755433855126,-160.20015304,0.00020473,2]
[379897475,1755433855135,-500.0,0.00020473,2]
[379897477,1755433855145,-500.0,0.00020473,2]
[379897479,1755433855154,-400.51360892,0.00020473,2]
[379897481,1755433855163,-500.0,0.00020473,2]
[379897483,1755433855172,-160.6223693,0.00020473,2]
[379897485,1755433855181,-500.0,0.00020473,2]
[379897487,1755433855190,-188.65528262,0.00020473,2]
[379897489,1755433855199,-181.25139885,0.00020473,2]
[379897491,1755433855209,-500.18170465,0.00020473,2]
[379897492,1755433855217,-500.99412831,0.00020473,2]
[379897494,1755433855227,-500.17107343,0.00020473,2]
[379897496,1755433855237,-500.0,0.00020473,2]
[379897498,1755433855246,-217.04616223,0.00020473,2]
[379897500,1755433855255,-500.0,0.00020473,2]
[379897502,1755433855264,-500.0,0.00020473,2]
[379897504,1755433855273,-237.57852605,0.00020473,2]
[379897506,1755433855283,-500.0,0.00020473,2]
[379897508,1755433855293,-500.0,0.00020473,2]
[379897510,1755433855303,-500.22350934,0.00020473,2]
[379897512,1755433855312,-501.74670769,0.00020473,2]
[379897514,1755433855322,-500.16719209,0.00020473,2]
[379897516,1755433855331,-500.0,0.00020473,2]
[379897518,1755433855341,-500.0,0.00020473,2]
[379897520,1755433855350,-500.0,0.00020473,2]
[379897522,1755433855359,-500.0,0.00020473,2]
[379897524,1755433855368,-521.8552445,0.00020473,2]
[379897526,1755433855378,-500.0,0.00020473,2]
[379897528,1755433855388,-500.0,0.00020473,2]
[379897530,1755433855397,-500.0,0.00020473,2]
[379897532,1755433855407,-500.0,0.00020473,2]
[379897534,1755433855416,-500.0,0.00020473,2]
[379897536,1755433855425,-500.0,0.00020473,2]
[379897538,1755433855435,-168.89872184,0.00020473,2]
[379897540,1755433855444,-500.0,0.00020473,2]
[379897541,1755433855454,-500.0,0.00020473,2]
[379897542,1755433855463,-445.5478031,0.00020473,2]
[379897543,1755433855472,-500.0,0.00020473,2]
[379897544,1755433855481,-500.0,0.00020473,2]
[379897545,1755433855490,-500.0,0.00020473,2]
[379897546,1755433855499,-516.42439368,0.00020473,2]
[379897547,1755433855508,-500.0,0.00020473,2]
[379897548,1755433855518,-500.0,0.00020473,2]
[379897549,1755433855526,-1440.0,0.00020493,2]
[379897550,1755433855535,-420.0,0.00020493,2]
[379897551,1755433855545,-921.66,0.00020498,2]
[379897552,1755433855554,-480.0,0.00020498,2]
[379897553,1755433855564,-480.0,0.00020498,2]
[379897554,1755433855574,-480.0,0.00020498,2]
[379897555,1755433855583,-420.0,0.00020498,2]
[379897556,1755433855592,-870.82,0.00020498,2]
[379897557,1755433855601,-381.73452311,0.00020498,2]
[379897558,1755433855610,-480.0,0.00020498,2]
[379897559,1755433855619,-480.0,0.00020498,2]
[379897560,1755433855628,-500.43,0.00020498,2]
[379897561,1755433855637,-684.45,0.00020498,2]
[379897562,1755433855647,-480.0,0.00020498,2]
[379897563,1755433855656,-1216.63,0.00020498,2]
[379897564,1755433855665,-488.18,0.00020498,2]
[379897565,1755433855674,-723.08,0.00020498,2]
[379897566,1755433855683,-480.0,0.00020498,2]
[379897567,1755433855692,-917.01,0.00020498,2]
[379897568,1755433855701,-525.89,0.00020498,2]
[379897569,1755433855712,-480.0,0.00020498,2]
[379897570,1755433855721,-739.15,0.00020498,2]
[379897571,1755433855730,-480.0,0.00020498,2]
[379897572,1755433855739,-480.0,0.00020498,2]
[379897573,1755433855748,-151.0,0.00020499,2]
[379897574,1755433855758,-151.0,0.00020499,2]
[379897575,1755433855767,-209.057067,0.00020499,2]
[379897576,1755433855776,-209.057067,0.00020499,2]
[379897577,1755433855786,-151.0,0.00020499,2]
[379897578,1755433855795,-480.0,0.00020499,2]
[379897579,1755433855809,-81443.41008533,0.000205,2]
[379897583,1755433855995,-1619.38572393,0.000205,2]
[379897635,1755433856592,-500.0,0.00018869,2]
[379897637,1755433856602,-163.07883499,0.00018869,2]
[379897639,1755433856611,-480.0,0.00019178,2]
[379897641,1755433856622,-480.0,0.00019178,2]
[379897643,1755433856631,-480.0,0.00019178,2]
[379897645,1755433856640,-168.17365071,0.00019178,2]
[379897684,1755433857027,-343.1935885,0.00018869,2]
[379899678,1755434161241,10000.0,0.00015,2]
[379899679,1755434223753,-199.0,0.00018031,2]
[379899680,1755434358477,2299.99,0.00027698,60]
[379899682,1755434421683,629.74395,0.00013699,2]
[379899684,1755434546877,500.0,0.00013699,2]
[379899688,1755434643524,500.0,0.00013699,2]
[379899689,1755434753715,485.02,0.00021,30]
[379899691,1755434773887,485.0,0.00028767,120]
[379899692,1755434803004,-97.77992706,0.00018031,2]
[379899695,1755434806682,323.0,0.00028767,120]
[379899698,1755434848098,-167.71209134,0.00018127,2]
[379899699,1755434848127,-300.0,0.00018227,2]
[379899700,1755434848156,-1200.0,0.00018227,2]
[379899701,1755434848185,-1200.0,0.00018227,2]
[379899702,1755434848213,-300.0,0.00018227,2]
[379899703,1755434848325,-142.99655934,0.00018228,2]
[379899704,1755434865345,-5000.0,0.00018228,2]
[379899707,1755434909307,5039.4993842,0.0001816,2]
[379899787,1755434926107,-327.47945711,0.0001853,2]
[379899788,1755434930460,-151.11129436,0.0001853,2]
[379899789,1755434932695,-204.70744097,0.0001853,2]
[379899790,1755434933970,-251.60297646,0.0001853,2]
[379899791,1755434935985,-246.90959975,0.0001853,2]
[379899796,1755434962460,-223.74338969,0.0001853,2]
[379899797,1755434964655,-156.19862792,0.0001853,2]
[379899798,1755434967160,-302.13548031,0.0001853,2]
[379899799,1755434968096,-348.08085715,0.0001853,2]
[379899800,1755434969660,-379.17428438,0.0001853,2]
[379899801,1755434969683,-58.46938776,0.00018644,2]
[379899802,1755434973694,-214.66273431,0.00018644,2]
[379899803,1755434975201,-26.86787793,0.00018644,2]
[379899804,1755434975226,-273.64382186,0.00018645,2]
[379899805,1755434976742,-272.30576162,0.00018645,2]
[379899806,1755434978893,-284.16228573,0.00018645,2]
[379899807,1755434980361,-247.54730916,0.00018645,2]
[379899808,1755434985581,-172.82974937,0.00018645,2]
[379899809,1755434988426,-298.39990921,0.00018645,2]
[379899810,1755434990474,-270.5450808,0.00018645,2]
[379899811,1755434991926,-196.29181219,0.00018645,2]
[379899813,1755434995563,-336.9149727,0.00018645,2]
[379899814,1755435001598,-285.70935433,0.00018645,2]
[379899815,1755435003096,-277.40325576,0.00018645,2]
[379899817,1755435004937,-191.14157386,0.00018645,2]
[379899818,1755435006438,-477.80943607,0.00018645,2]
[379899819,1755435010472,-241.59045746,0.00018645,2]
[379899821,1755435014931,-276.10380504,0.00018645,2]
[379899822,1755435017589,-412.45154283,0.00018645,2]
[379899823,1755435021211,-279.19511293,0.00018645,2]
[379899824,1755435024376,-288.25799454,0.00018645,2]
[379899825,1755435025910,-165.35138601,0.00018645,2]
[379899826,1755435027950,-200.36295635,0.00018645,2]
[379899827,1755435030443,-172.10771669,0.00018645,2]
[379899834,1755435032374,-5266.7244604,0.00018645,2]
[379899835,1755435032384,-309.41847665,0.000188,2]
[379899836,1755435032393,-150.0,0.00018871,2]
[379899837,1755435032402,-300.0,0.00018896,2]
[379899839,1755435032412,-1000.0,0.00018897,2]
[379899841,1755435032421,-473.81,0.00018897,2]
[379899843,1755435032430,-500.0,0.00018986,2]
[379899845,1755435032439,-240.02769705,0.00019078,2]
[379899846,1755435032449,-414.69520532,0.00019078,2]
[379899847,1755435032458,-322.83308049,0.00019078,2]
[379899848,1755435032471,-4606.80002184,0.00019078,2]
[379899850,1755435032481,-265.85,0.00019168,3]
[379899851,1755435032489,-797.55,0.00019168,3]
[379899852,1755435032498,-500.0,0.00019177,2]
[379899853,1755435032508,-311.46357308,0.00019177,2]
[379899854,1755435032518,-500.0,0.00019177,2]
[379899855,1755435032527,-247.52919067,0.00019177,2]
[379899856,1755435032537,-486.9361398,0.00019177,2]
[379899857,1755435032549,-500.0,0.00019177,2]
[379899858,1755435032558,-500.0,0.00019177,2]
[379899859,1755435032567,-500.0,0.00019177,2]
[379899860,1755435032576,-334.68124207,0.00019177,2]
[379899861,1755435032586,-480.0,0.00019178,2]
[379899862,1755435032595,-480.0,0.00019178,2]
[379899863,1755435032604,-480.0,0.00019178,2]
[379899864,1755435032614,-460.0,0.00019178,2]
[379899865,1755435032623,-480.0,0.00019178,2]
[379899866,1755435032632,-480.0,0.00019178,2]
[379899868,1755435032641,-480.0,0.00019178,2]
[379899869,1755435032650,-480.0,0.00019178,2]
[379899870,1755435032659,-480.0,0.00019178,2]
[379899871,1755435032668,-480.0,0.00019178,2]
[379899872,1755435032679,-480.0,0.00019178,2]
[379899873,1755435032688,-480.0,0.00019178,2]
[379899874,1755435032697,-582.80640739,0.00019178,2]
[379899875,1755435032706,-480.0,0.00019178,2]
[379899876,1755435032716,-480.0,0.00019178,2]
[379899877,1755435032725,-480.0,0.00019178,2]
[379899878,1755435032734,-480.0,0.00019178,2]
[379899879,1755435032743,-480.0,0.00019178,2]
[379899880,1755435032752,-480.0,0.00019178,2]
[379899881,1755435032762,-480.0,0.00019178,2]
[379899882,1755435032772,-948.7,0.00019178,2]
[379899883,1755435032781,-480.0,0.00019178,2]
[379899884,1755435032790,-480.0,0.00019178,2]
[379899885,1755435032799,-380.17450755,0.00019178,2]
[379899886,1755435032813,-99.82549245,0.00019178,2]
[379899887,1755435032824,-480.0,0.00019178,2]
[379899888,1755435032833,-480.0,0.00019178,2]
[379899889,1755435032842,-460.0,0.00019178,2]
[379899890,1755435032851,-480.0,0.00019178,2]
[379899891,1755435032860,-480.0,0.00019178,2]
[379899892,1755435032869,-480.0,0.00019178,2]
[379899893,1755435032879,-480.0,0.00019178,2]
[379899894,1755435032888,-480.0,0.00019178,2]
[379899895,1755435032898,-480.0,0.00019178,2]
[379899896,1755435032907,-480.0,0.00019178,2]
[379899897,1755435032916,-181.95496896,0.00019178,2]
[379899898,1755435032925,-219.22811553,0.00019178,2]
[379899899,1755435032934,-593.52,0.00019178,2]
[379899900,1755435032943,-480.0,0.00019178,2]
[379899901,1755435032952,-480.0,0.00019178,2]
[379899902,1755435032961,-480.0,0.00019178,2]
[379899903,1755435032971,-480.0,0.00019178,2]
[379899904,1755435032980,-480.0,0.00019178,2]
[379899905,1755435032989,-935.48,0.00019178,2]
[379899906,1755435032998,-480.0,0.00019178,2]
[379899907,1755435033007,-480.0,0.00019178,2]
[379899908,1755435033016,-480.0,0.00019178,2]
[379899909,1755435033026,-480.0,0.00019178,2]
[379899910,1755435033035,-480.0,0.00019178,2]
[379899911,1755435033044,-480.0,0.00019178,2]
[379899912,1755435033054,-480.0,0.00019178,2]
[379899913,1755435033064,-480.0,0.00019178,2]
[379899914,1755435033074,-441.36459321,0.00019178,2]
[379899915,1755435033084,-480.0,0.00019178,2]
[379899916,1755435033093,-480.0,0.00019178,2]
[379899917,1755435033104,-480.0,0.00019178,2]
[379899918,1755435033113,-480.0,0.00019178,2]
[379899919,1755435033123,-512.42085714,0.00019178,2]
[379899920,1755435033133,-309.00958085,0.00019178,2]
[379899921,1755435033148,-170.99041915,0.00019178,2]
[379899922,1755435033157,-480.0,0.00019178,2]
[379899923,1755435033167,-480.0,0.00019178,2]
[379899924,1755435033176,-480.0,0.00019178,2]
[379899925,1755435033186,-480.0,0.00019178,2]
[379899926,1755435033195,-480.0,0.00019178,2]
[379899927,1755435033204,-549.52099757,0.00019178,2]
[379899928,1755435033214,-480.0,0.00019178,2]
[379899929,1755435033223,-480.0,0.00019178,2]
[379899930,1755435033389,-480.0,0.00019178,2]
[379899931,1755435033400,-480.0,0.00019178,2]
[379899932,1755435033410,-480.0,0.00019178,2]
[379899933,1755435033420,-480.0,0.00019178,2]
[379899934,1755435033430,-484.08,0.00019178,2]
[379899935,1755435033440,-480.0,0.00019178,2]
[379899936,1755435033449,-629.07120505,0.00019178,2]
[379899937,1755435033459,-661.89,0.00019178,2]
[379899938,1755435033472,-480.0,0.00019178,2]
[379899939,1755435033482,-480.0,0.00019178,2]
[379899940,1755435033492,-104.77564283,0.00019178,2]
[379899941,1755435033518,-375.22435717,0.00019178,2]
[379899942,1755435033529,-480.0,0.00019178,2]
[379899943,1755435033538,-480.0,0.00019178,2]
[379899944,1755435033550,-480.0,0.00019178,2]
[379899945,1755435033560,-480.0,0.00019178,2]
[379899946,1755435033570,-443.97386721,0.00019178,2]
[379899947,1755435033579,-480.0,0.00019178,2]
[379899948,1755435033589,-1212.51,0.00019178,2]
[379899949,1755435033600,-258.11479157,0.00019178,2]
[379899950,1755435033612,-181.88520843,0.00019178,2]
[379899951,1755435033622,-74.90786631,0.00019178,2]
[379899952,1755435033750,-247.5826739,0.00019178,2]
[379899953,1755435036606,-155.87508113,0.00019178,2]
[379899964,1755435038202,-1.63437866,0.00019178,2]
[379899967,1755435038229,-150.34229497,0.00019178,2]
[379899968,1755435038301,-338.77770503,0.00019178,2]
[379899969,1755435038310,-480.0,0.00019178,2]
[379899970,1755435038320,-480.0,0.00019178,2]
[379899971,1755435038329,-695.25,0.00019178,2]
[379899972,1755435038339,-440.0,0.00019178,2]
[379899973,1755435038349,-480.0,0.00019178,2]
[379899975,1755435038359,-480.0,0.00019178,2]
[379899977,1755435038369,-480.0,0.00019178,2]
[379899979,1755435038379,-480.0,0.00019178,2]
[379899980,1755435038388,-480.0,0.00019178,2]
[379899981,1755435038397,-308.07087061,0.00019178,2]
[379899982,1755435038406,-620.35,0.00019178,2]
[379899983,1755435038415,-480.0,0.00019178,2]
[379899984,1755435038425,-1042.96,0.00019178,2]
[379899985,1755435038434,-480.0,0.00019178,2]
[379899986,1755435038445,-480.0,0.00019178,2]
[379899987,1755435038454,-460.0,0.00019178,2]
[379899988,1755435038465,-480.0,0.00019178,2]
[379899989,1755435038474,-440.0,0.00019178,2]
[379899990,1755435038483,-480.0,0.00019178,2]
[379899991,1755435038493,-493.77,0.00019178,2]
[379899992,1755435038502,-480.0,0.00019178,2]
[379899993,1755435038514,-480.0,0.00019178,2]
[379899994,1755435038523,-504.48346742,0.00019178,2]
[379899995,1755435038532,-440.0,0.00019178,2]
[379899996,1755435038542,-480.0,0.00019178,2]
[379899997,1755435038551,-441.18199576,0.00019178,2]
[379899998,1755435038560,-480.0,0.00019178,2]
[379899999,1755435038570,-480.0,0.00019178,2]
[379900000,1755435038578,-562.51060346,0.00019178,2]
[379900001,1755435038587,-461.63460395,0.00019178,2]
[379900002,1755435038597,-480.0,0.00019178,2]
[379900003,1755435038606,-423.66804916,0.00019178,2]
[379900004,1755435038615,-480.0,0.00019178,2]
[379900005,1755435038624,-480.0,0.00019178,2]
[379900006,1755435038633,-920.01,0.00019178,2]
[379900007,1755435038642,-480.0,0.00019178,2]
[379900008,1755435038651,-936.38,0.00019178,2]
[379900009,1755435038661,-466.31001225,0.00019178,2]
[379900010,1755435038670,-480.0,0.00019178,2]
[379900011,1755435038679,-480.0,0.00019178,2]
[379900012,1755435038688,-480.0,0.00019178,2]
[379900013,1755435038697,-504.74,0.00019178,2]
[379900014,1755435038706,-480.0,0.00019178,2]
[379900015,1755435038716,-480.0,0.00019178,2]
[379900016,1755435038725,-480.0,0.00019178,2]
[379900017,1755435038735,-480.0,0.00019178,2]
[379900018,1755435038744,-480.0,0.00019178,2]
[379900019,1755435038752,-480.0,0.00019178,2]
[379900020,1755435038762,-480.0,0.00019178,2]
[379900021,1755435038771,-480.0,0.00019178,2]
[379900022,1755435038780,-480.0,0.00019178,2]
[379900023,1755435038789,-480.0,0.00019178,2]
[379900024,1755435038798,-480.0,0.00019178,2]
[379900025,1755435038807,-480.0,0.00019178,2]
[379900026,1755435038816,-462.26132708,0.00019178,2]
[379900027,1755435038825,-480.0,0.00019178,2]
[379900028,1755435038835,-480.0,0.00019178,2]
[379900029,1755435038844,-1133.78,0.00019178,2]
[379900030,1755435038853,-480.0,0.00019178,2]
[379900031,1755435038862,-480.0,0.00019178,2]
[379900032,1755435038871,-480.0,0.00019178,2]
[379900033,1755435038881,-480.0,0.00019178,2]
[379900034,1755435038890,-480.0,0.00019178,2]
[379900035,1755435038899,-480.0,0.00019178,2]
[379900036,1755435038908,-480.0,0.00019178,2]
[379900037,1755435038918,-480.0,0.00019178,2]
[379900038,1755435038927,-460.51361738,0.00019178,2]
[379900039,1755435038935,-480.0,0.00019178,2]
[379900040,1755435038945,-480.0,0.00019178,2]
[379900041,1755435038954,-480.0,0.00019178,2]
[379900042,1755435038964,-767.52,0.00019178,2]
[379900043,1755435038974,-480.0,0.00019178,2]
[379900044,1755435038983,-480.0,0.00019178,2]
[379900045,1755435038992,-480.0,0.00019178,2]
[379900046,1755435039000,-385.72079697,0.00019178,2]
[379900047,1755435039009,-480.0,0.00019178,2]
[379900048,1755435039019,-480.0,0.00019178,2]
[379900049,1755435039028,-480.0,0.00019178,2]
[379900050,1755435039038,-520.30738997,0.00019178,2]
[379900051,1755435039047,-480.0,0.00019178,2]
[379900052,1755435039056,-480.0,0.00019178,2]
[379900053,1755435039066,-480.0,0.00019178,2]
[379900054,1755435039075,-574.49171777,0.00019178,2]
[379900055,1755435039084,-461.70485593,0.00019178,2]
[379900056,1755435039093,-480.0,0.00019178,2]
[379900057,1755435039102,-195.01925038,0.00019178,2]
[379900058,1755435039111,-480.0,0.00019178,2]
[379900059,1755435039121,-480.0,0.00019178,2]
[379900060,1755435039129,-480.0,0.00019178,2]
[379900061,1755435039139,-671.35,0.00019178,2]
[379900062,1755435039148,-480.0,0.00019178,2]
[379900063,1755435039157,-480.0,0.00019178,2]
[379900064,1755435039167,-480.0,0.00019178,2]
[379900065,1755435039176,-480.0,0.00019178,2]
[379900066,1755435039185,-558.3046011,0.00019178,2]
[379900067,1755435039194,-480.0,0.00019178,2]
[379900068,1755435039202,-480.0,0.00019178,2]
[379900069,1755435039211,-500.0,0.00019178,2]
[379900070,1755435039221,-500.0,0.00019178,2]
[379900071,1755435039230,-480.0,0.00019178,2]
[379900072,1755435039240,-480.0,0.00019178,2]
[379900073,1755435039250,-460.0,0.00019178,2]
[379900074,1755435039259,-687.57,0.00019178,2]
[379900075,1755435039268,-464.53280323,0.00019178,2]
[379900076,1755435039278,-480.0,0.00019178,2]
[379900077,1755435039288,-1105.08,0.00019178,2]
[379900078,1755435039297,-480.0,0.00019178,2]
[379900079,1755435039307,-480.0,0.00019178,2]
[379900080,1755435039316,-480.0,0.00019178,2]
[379900081,1755435039325,-480.0,0.00019178,2]
[379900082,1755435039335,-460.43017989,0.00019178,2]
[379900083,1755435039344,-480.0,0.00019178,2]
[379900084,1755435039354,-480.0,0.00019178,2]
[379900085,1755435039363,-480.0,0.00019178,2]
[379900086,1755435039372,-480.0,0.00019178,2]
[379900087,1755435039381,-480.0,0.00019178,2]
[379900088,1755435039390,-368.79835111,0.00019178,2]
[379900089,1755435039399,-480.0,0.00019178,2]
[379900090,1755435039408,-480.0,0.00019178,2]
[379900091,1755435039418,-464.09872347,0.00019178,2]
[379900092,1755435039427,-480.0,0.00019178,2]
[379900093,1755435039436,-480.0,0.00019178,2]
[379900094,1755435039445,-480.0,0.00019178,2]
[379900095,1755435039454,-480.0,0.00019178,2]
[379900096,1755435039465,-441.59428367,0.00019178,2]
[379900097,1755435039476,-480.0,0.00019178,2]
[379900098,1755435039485,-698.56,0.00019178,2]
[379900099,1755435039494,-480.0,0.00019178,2]
[379900100,1755435039503,-264.87053807,0.00019178,2]
[379900101,1755435039512,-979.71,0.00019178,2]
[379900102,1755435039521,-480.0,0.00019178,2]
[379900103,1755435039530,-460.58498551,0.00019178,2]
[379900104,1755435039539,-500.0,0.00019178,2]
[379900105,1755435039550,-500.0,0.00019178,2]
[379900106,1755435039559,-500.0,0.00019178,2]
[379900107,1755435039569,-480.0,0.00019178,2]
[379900108,1755435039579,-500.0,0.00019178,2]
[379900109,1755435039592,-480.0,0.00019178,2]
[379900110,1755435039601,-500.0,0.00019178,2]
[379900111,1755435039610,-480.0,0.00019178,2]
[379900112,1755435039619,-500.0,0.00019178,2]
[379900113,1755435039628,-480.0,0.00019178,2]
[379900114,1755435039638,-500.0,0.00019178,2]
[379900115,1755435039647,-500.0,0.00019178,2]
[379900116,1755435039656,-637.69,0.00019178,2]
[379900117,1755435039665,-480.0,0.00019178,2]
[379900118,1755435039674,-480.0,0.00019178,2]
[379900119,1755435039683,-3755.36874134,0.00019178,2]
[379900120,1755435039707,-4634.60125866,0.00019178,2]
[379900121,1755435039720,-480.0,0.00019178,2]
[379900122,1755435039730,-2436.81,0.00019178,2]
[379900123,1755435039739,-1489.26,0.00019178,2]
[379900124,1755435039748,-480.0,0.00019178,2]
[379900125,1755435039758,-480.0,0.00019178,2]
[379900126,1755435039767,-480.0,0.00019178,2]
[379900127,1755435039776,-5548.01,0.00019178,2]
[379900128,1755435039786,-480.0,0.00019178,2]
[379900129,1755435039795,-480.0,0.00019178,2]
[379900130,1755435039805,-480.0,0.00019178,2]
[379900131,1755435039814,-480.0,0.00019178,2]